fUST/lending_fUST_20240219
["ID","MTS","AMOUNT","RATE_DAILY","PERIOD"]
[314439310,1708354250115,-500.0,0.00027397,2]
[314439311,1708354250125,-500.0,0.00027397,2]
[314439312,1708354250139,-500.0,0.00027397,2]
[314439313,1708354250149,-546.89,0.00027397,2]
[314439314,1708354250159,-36532.68,0.00027397,2]
[314439315,1708354250169,-500.0,0.00027397,2]
[314439316,1708354250180,-500.0,0.00027397,2]
[314439317,1708354250190,-3836.61,0.00027397,2]
[314439318,1708354250200,-500.0,0.00027397,2]
[314439319,1708354250209,-500.0,0.00027397,2]
[314439320,1708354250297,-575.51,0.00027397,2]
[314439321,1708354250307,-500.0,0.00027397,2]
[314439322,1708354250317,-500.0,0.00027397,2]
[314439323,1708354250326,-500.0,0.00027397,2]
[314439324,1708354250336,-500.0,0.00027397,2]
[314439325,1708354250346,-606.70610253,0.00027397,2]
[314439326,1708354250356,-500.0,0.00027397,2]
[314439327,1708354250366,-500.0,0.00027397,2]
[314439328,1708354250376,-377.41017302,0.00027397,2]
[314439329,1708354250390,-1077.52,0.00027397,2]
[314439330,1708354250400,-500.0,0.00027397,2]
[314439331,1708354250410,-16462.51,0.00027397,2]
[314439332,1708354250419,-716.1,0.00027397,2]
[314439333,1708354250430,-317.30845994,0.00027397,2]
[314439334,1708354250439,-1180.42,0.00027397,2]
[314439335,1708354250449,-500.0,0.00027397,2]
[314439336,1708354250460,-500.0,0.00027397,2]
[314439337,1708354250469,-500.0,0.00027397,2]
[314439338,1708354250479,-500.0,0.00027397,2]
[314439339,1708354250489,-500.0,0.00027397,2]
[314439340,1708354250499,-636.44,0.00027397,2]
[314439341,1708354250509,-500.0,0.00027397,2]
[314439342,1708354250519,-500.0,0.00027397,2]
[314439343,1708354250528,-500.0,0.00027397,2]
[314439344,1708354250538,-500.0,0.00027397,2]
[314439345,1708354250548,-500.0,0.00027397,30]
[314439346,1708354250557,-500.0,0.00027397,2]
[314439347,1708354250567,-500.0,0.00027397,2]
[314439348,1708354250576,-500.0,0.00027397,2]
[314439349,1708354250585,-500.0,0.00027397,2]
[314439350,1708354250594,-500.0,0.00027397,2]
[314439351,1708354250603,-500.0,0.00027397,2]
[314439352,1708354250612,-500.0,0.00027397,2]
[314439353,1708354250622,-500.0,0.00027397,2]
[314439354,1708354250631,-500.0,0.00027397,2]
[314439355,1708354250643,-500.0,0.00027397,2]
[314439356,1708354250653,-500.0,0.00027397,2]
[314439357,1708354250662,-500.0,0.00027397,2]
[314439358,1708354250671,-500.0,0.00027397,2]
[314439359,1708354250680,-500.0,0.00027397,2]
[314439360,1708354250689,-500.0,0.00027397,2]
[314439361,1708354250699,-500.0,0.00027397,2]
[314439362,1708354250708,-500.0,0.00027397,2]
[314439363,1708354250717,-500.0,0.00027397,2]
[314439364,1708354250726,-500.0,0.00027397,2]
[314439365,1708354250735,-500.0,0.00027397,2]
[314439366,1708354250744,-500.0,0.00027397,2]
[314439367,1708354250754,-500.0,0.00027397,2]
[314439368,1708354250763,-500.0,0.00027397,2]
[314439369,1708354250772,-500.0,0.00027397,2]
[314439370,1708354250781,-252.20884706,0.00027397,2]
[314439371,1708354250790,-500.0,0.00027397,2]
[314439372,1708354250799,-500.0,0.00027397,2]
[314439373,1708354250808,-500.0,0.00027397,2]
[314439374,1708354250816,-500.0,0.00027397,2]
[314439375,1708354250826,-500.0,0.00027397,2]
[314439376,1708354250835,-500.0,0.00027397,2]
[314439377,1708354250845,-500.0,0.00027397,2]
[314439378,1708354250855,-2783.83,0.00027397,2]
[314439379,1708354250865,-500.0,0.00027397,2]
[314439380,1708354250874,-3622.61,0.00027397,2]
[314439381,1708354250886,-500.0,0.00027397,2]
[314439382,1708354250895,-500.0,0.00027397,2]
[314439383,1708354250904,-500.0,0.00027397,2]
[314439384,1708354250913,-513.8,0.00027397,2]
[314439385,1708354250922,-1202.24,0.00027397,2]
[314439386,1708354250932,-505.50990256,0.00027397,2]
[314439387,1708354250942,-500.0,0.00027397,2]
[314439388,1708354250951,-500.0,0.00027397,2]
[314439389,1708354250961,-4802.22,0.00027397,2]
[314439390,1708354250970,-500.0,0.00027397,2]
[314439391,1708354250980,-500.0,0.00027397,2]
[314439392,1708354250989,-12001.78,0.00027397,2]
[314439393,1708354250998,-500.0,0.00027397,2]
[314439394,1708354251008,-500.0,0.00027397,2]
[314439395,1708354251017,-500.0,0.00027397,2]
[314439396,1708354251026,-500.0,0.00027397,2]
[314439397,1708354251036,-501.70629406,0.00027397,2]
[314439398,1708354251046,-500.0,0.00027397,2]
[314439399,1708354251055,-500.0,0.00027397,2]
[314439400,1708354251064,-500.0,0.00027397,2]
[314439401,1708354251073,-500.0,0.00027397,2]
[314439402,1708354251082,-500.0,0.00027397,2]
[314439403,1708354251091,-500.0,0.00027397,2]
[314439404,1708354251100,-500.0,0.00027397,2]
[314439405,1708354251109,-2107.93,0.00027397,2]
[314439406,1708354251118,-500.0,0.00027397,2]
[314439407,1708354251128,-500.0,0.00027397,2]
[314439408,1708354251139,-418.89955506,0.00027397,2]
[314439409,1708354251148,-16588.96,0.00027397,2]
[314439410,1708354251157,-500.0,0.00027397,2]
[314439411,1708354251167,-500.0,0.00027397,2]
[314439412,1708354251177,-500.0,0.00027397,2]
[314439413,1708354251186,-500.0,0.00027397,2]
[314439414,1708354251195,-33364.76,0.00027397,2]
[314439415,1708354251205,-511.09769947,0.00027397,2]
[314439416,1708354251214,-500.0,0.00027397,2]
[314439417,1708354251223,-500.0,0.00027397,2]
[314439418,1708354251233,-500.0,0.00027397,2]
[314439419,1708354251242,-500.0,0.00027397,2]
[314439420,1708354251252,-500.0,0.00027397,2]
[314439421,1708354251262,-4587.01,0.00027397,2]
[314439422,1708354251272,-500.0,0.00027397,2]
[314439423,1708354251281,-4214.46,0.00027397,2]
[314439424,1708354251291,-6913.34,0.00027397,2]
[314439425,1708354251301,-150.91379181,0.00027397,2]
[314439426,1708354251310,-500.0,0.00027397,2]
[314439427,1708354251320,-500.0,0.00027397,2]
[314439428,1708354251329,-500.0,0.00027397,2]
[314439429,1708354251338,-500.0,0.00027397,2]
[314439430,1708354251348,-500.0,0.00027397,2]
[314439431,1708354251357,-581.09617066,0.00027397,2]
[314439432,1708354251367,-500.0,0.00027397,2]
[314439433,1708354251376,-500.0,0.00027397,2]
[314439434,1708354251386,-500.0,0.00027397,2]
[314439435,1708354251395,-500.2659361,0.00027397,2]
[314439436,1708354251478,-500.0,0.00027397,2]
[314439437,1708354251487,-872.81,0.00027397,2]
[314439438,1708354251497,-500.0,0.00027397,2]
[314439439,1708354251506,-2961.95,0.00027397,2]
[314439440,1708354251515,-525.245876,0.00027397,2]
[314439441,1708354251524,-525.245876,0.00027397,2]
[314439442,1708354251534,-525.245876,0.00027397,2]
[314439443,1708354251543,-500.0,0.00027397,2]
[314439444,1708354251552,-525.245876,0.00027397,2]
[314439445,1708354251561,-525.245876,0.00027397,2]
[314439446,1708354251570,-500.0,0.00027397,2]
[314439447,1708354251579,-525.245876,0.00027397,2]
[314439448,1708354251588,-500.0,0.00027397,2]
[314439449,1708354251598,-525.245876,0.00027397,2]
[314439450,1708354251607,-525.245876,0.00027397,2]
[314439451,1708354251616,-500.0,0.00027397,2]
[314439452,1708354251625,-525.245876,0.00027397,2]
[314439453,1708354251633,-525.245876,0.00027397,2]
[314439454,1708354251643,-525.245876,0.00027397,2]
[314439455,1708354251653,-525.245876,0.00027397,2]
[314439456,1708354251662,-525.245876,0.00027397,2]
[314439457,1708354251671,-209.66059982,0.00027397,2]
[314439458,1708354251681,-525.245876,0.00027397,2]
[314439459,1708354251690,-525.245876,0.00027397,2]
[314439460,1708354251699,-525.245876,0.00027397,2]
[314439461,1708354251708,-500.0,0.00027397,2]
[314439462,1708354251717,-525.245876,0.00027397,2]
[314439463,1708354251726,-525.245866,0.00027397,2]
[314439464,1708354251736,-2699.05,0.00027397,2]
[314439465,1708354251745,-500.0,0.00027397,2]
[314439466,1708354251754,-500.0,0.00027397,2]
[314439467,1708354251764,-500.0,0.00027397,2]
[314439468,1708354251773,-2133.3,0.00027397,2]
[314439469,1708354251782,-500.0,0.00027397,2]
[314439470,1708354251792,-500.0,0.00027397,2]
[314439471,1708354251801,-500.0,0.00027397,2]
[314439472,1708354251811,-500.0,0.00027397,2]
[314439473,1708354251820,-500.0,0.00027397,2]
[314439474,1708354251829,-500.0,0.00027397,2]
[314439475,1708354251842,-500.0,0.00027397,2]
[314439476,1708354251852,-771.6,0.00027397,2]
[314439477,1708354251861,-558.79,0.00027397,2]
[314439478,1708354251871,-506.34866134,0.00027397,2]
[314439479,1708354251882,-3641.35,0.00027397,2]
[314439480,1708354251892,-878.75,0.00027397,2]
[314439481,1708354251901,-638.39697754,0.00027397,2]
[314439482,1708354251910,-1018.76,0.00027397,2]
[314439483,1708354251920,-7048.41,0.00027397,2]
[314439484,1708354251929,-220.30022493,0.00027397,2]
[314439485,1708354251938,-500.0,0.00027397,2]
[314439486,1708354251947,-500.0,0.00027397,2]
[314439487,1708354251957,-500.0,0.00027397,2]
[314439488,1708354251966,-500.0,0.00027397,2]
[314439489,1708354251975,-500.0,0.00027397,2]
[314439490,1708354252000,-500.0,0.00027397,2]
[314439491,1708354252016,-500.0,0.00027397,2]
[314439492,1708354252036,-500.0,0.00027397,2]
[314439493,1708354252054,-500.0,0.00027397,2]
[314439494,1708354252071,-300.41329275,0.00027397,2]
[314439495,1708354252090,-500.0,0.00027397,2]
[314439496,1708354252106,-500.0,0.00027397,2]
[314439497,1708354252126,-500.0,0.00027397,2]
[314439498,1708354252142,-200.0,0.00027397,2]
[314439499,1708354252159,-500.0,0.00027397,2]
[314439500,1708354252180,-500.0,0.00027397,2]
[314439501,1708354252195,-500.0,0.00027397,2]
[314439502,1708354252209,-617.55,0.00027397,2]
[314439503,1708354252226,-506.0307741,0.00027397,2]
[314439504,1708354252239,-2069.33,0.00027397,2]
[314439505,1708354252254,-680.15,0.00027397,2]
[314439506,1708354252268,-500.0,0.00027397,2]
[314439507,1708354252283,-706.39,0.00027397,2]
[314439508,1708354252297,-169.92258086,0.00027397,2]
[314439509,1708354252311,-850.47,0.00027397,2]
[314439510,1708354252325,-500.0,0.00027397,2]
[314439511,1708354252339,-500.0,0.00027397,2]
[314439512,1708354252353,-500.0,0.00027397,2]
[314439513,1708354252367,-1335.89,0.00027397,2]
[314439514,1708354252382,-1159.58,0.00027397,2]
[314439515,1708354252398,-500.0,0.00027397,2]
[314439516,1708354252414,-500.0,0.00027397,2]
[314439517,1708354252428,-390.0,0.00027397,2]
[314439518,1708354252442,-500.0,0.00027397,2]
[314439519,1708354252455,-3533.09,0.00027397,2]
[314439520,1708354252469,-400.75177584,0.00027397,2]
[314439521,1708354252484,-500.0,0.00027397,2]
[314439522,1708354252498,-500.0,0.00027397,2]
[314439523,1708354252512,-500.0,0.00027397,2]
[314439524,1708354252527,-4651.23,0.00027397,2]
[314439525,1708354252540,-441.85680475,0.00027397,2]
[314439526,1708354252554,-500.0,0.00027397,2]
[314439527,1708354252568,-500.0,0.00027397,2]
[314439528,1708354252582,-500.0,0.00027397,2]
[314439529,1708354252596,-357.80283297,0.00027397,2]
[314439530,1708354252609,-23407.0,0.00027397,2]
[314439531,1708354252623,-500.0,0.00027397,2]
[314439532,1708354252639,-500.0,0.00027397,2]
[314439533,1708354252653,-500.0,0.00027397,2]
[314439534,1708354252667,-500.0,0.00027397,2]
[314439535,1708354252681,-577.33003737,0.00027397,2]
[314439536,1708354252695,-500.0,0.00027397,2]
[314439537,1708354252708,-1027.2,0.00027397,2]
[314439538,1708354252723,-500.0,0.00027397,2]
[314439539,1708354252734,-1000.0,0.00027397,2]
[314439540,1708354252745,-600.0,0.00027397,2]
[314439541,1708354252754,-400.68409136,0.00027397,2]
[314439542,1708354252763,-500.0,0.00027397,2]
[314439543,1708354252906,-5168.31,0.00027397,2]
[314439544,1708354252925,-500.0,0.00027397,2]
[314439545,1708354252936,-500.0,0.00027397,2]
[314439546,1708354252946,-544.69,0.00027397,2]
[314439547,1708354252955,-500.0,0.00027397,2]
[314439548,1708354252966,-200.8869038,0.00027397,2]
[314439549,1708354252975,-500.0,0.00027397,2]
[314439550,1708354252984,-500.0,0.00027397,2]
[314439551,1708354252993,-500.0,0.00027397,2]
[314439552,1708354253002,-500.0,0.00027397,2]
[314439553,1708354253011,-590.43,0.00027397,2]
[314439554,1708354253020,-500.0,0.00027397,2]
[314439555,1708354253031,-160.0,0.00027397,10]
[314439556,1708354253042,-2000.0,0.000275,2]
[314439557,1708354253052,-2000.0,0.0002751,2]
[314439558,1708354253061,-2000.0,0.0002752,2]
[314439559,1708354253070,-2000.0,0.0002753,2]
[314439560,1708354253079,-500.0,0.00027534,2]
[314439561,1708354253088,-3087.683732,0.0002754,2]
[314439562,1708354253097,-166.666666,0.00027542,2]
[314439563,1708354253106,-300.0,0.00027543,2]
[314439564,1708354253115,-220.380701,0.00027555,2]
[314439565,1708354253124,-371.622266,0.00027555,2]
[314439566,1708354253133,-161.570266,0.00027555,2]
[314439567,1708354253144,-287.090031,0.00027555,2]
[314439568,1708354253153,-205.077026,0.00027555,2]
[314439569,1708354253162,-204.872827,0.00027555,2]
[314439570,1708354253171,-158.71717645,0.00027671,2]
[314439571,1708354253181,-500.0,0.00027671,2]
[314439572,1708354253190,-500.0,0.00027671,2]
[314439573,1708354253199,-500.0,0.00027671,2]
[314439574,1708354253208,-500.0,0.00027671,2]
[314439575,1708354253218,-500.0,0.00027671,2]
[314439576,1708354253227,-500.0,0.00027671,2]
[314439577,1708354253236,-594.9404503,0.00027671,2]
[314439578,1708354253246,-511.25198583,0.00027671,2]
[314439579,1708354253255,-594.29,0.00027671,2]
[314439580,1708354253265,-302.2827155,0.00027671,2]
[314439581,1708354253275,-500.0,0.00027671,2]
[314439582,1708354253285,-500.0,0.00027671,2]
[314439583,1708354253294,-500.0,0.00027671,2]
[314439584,1708354253306,-500.0,0.00027671,2]
[314439585,1708354253315,-500.0,0.00027671,2]
[314439586,1708354253324,-500.0,0.00027671,2]
[314439587,1708354253334,-500.0,0.00027671,2]
[314439588,1708354253343,-500.0,0.00027671,2]
[314439589,1708354253352,-1217.96,0.00027671,2]
[314439590,1708354253362,-500.0,0.00027671,2]
[314439591,1708354253371,-523.04915757,0.00027671,2]
[314439592,1708354253380,-846.5,0.00027671,2]
[314439593,1708354253391,-520.02790685,0.00027671,2]
[314439594,1708354253400,-549.86,0.00027671,2]
[314439595,1708354253410,-500.0,0.00027671,2]
[314439596,1708354253419,-500.0,0.00027671,2]
[314439597,1708354253429,-196.41852166,0.00027671,2]
[314439598,1708354253439,-151.0,0.00027671,2]
[314439599,1708354253448,-500.0,0.00027671,2]
[314439600,1708354253457,-500.0,0.00027671,2]
[314439601,1708354253467,-500.0,0.00027671,2]
[314439602,1708354253476,-500.0,0.00027671,2]
[314439603,1708354253485,-1942.3,0.00027671,2]
[314439604,1708354253494,-284.27500849,0.00027671,2]
[314439605,1708354253503,-224.98611037,0.00027671,2]
[314439606,1708354253512,-589.11029409,0.00027671,2]
[314439607,1708354253521,-500.0,0.00027671,2]
[314439608,1708354253530,-500.0,0.00027671,2]
[314439609,1708354253539,-500.0,0.00027671,2]
[314439610,1708354253548,-185.13798619,0.00027671,2]
[314439611,1708354253557,-500.0,0.00027671,2]
[314439612,1708354253566,-500.0,0.00027671,2]
[314439613,1708354253576,-500.0,0.00027671,2]
[314439614,1708354253584,-500.0,0.00027671,2]
[314439615,1708354253593,-705.19,0.00027671,2]
[314439616,1708354253602,-500.0,0.00027671,2]
[314439617,1708354253611,-584.06,0.00027671,2]
[314439618,1708354253620,-400.0,0.00027671,2]
[314439619,1708354253629,-500.0,0.00027671,2]
[314439620,1708354253641,-1509.57,0.00027671,2]
[314439621,1708354253650,-500.0,0.00027671,2]
[314439622,1708354253659,-500.0,0.00027671,2]
[314439623,1708354253668,-500.0,0.00027671,2]
[314439624,1708354253677,-564.41246244,0.00027671,2]
[314439625,1708354253686,-500.0,0.00027671,2]
[314439626,1708354253695,-500.0,0.00027671,2]
[314439627,1708354253704,-4894.68,0.00027671,2]
[314439628,1708354253713,-500.0,0.00027671,2]
[314439629,1708354253723,-500.0,0.00027671,2]
[314439630,1708354253733,-500.0,0.00027671,2]
[314439631,1708354253742,-613.08390785,0.00027671,2]
[314439632,1708354253752,-243.95536397,0.00027671,2]
[314439633,1708354253760,-500.0,0.00027671,2]
[314439634,1708354253770,-500.0,0.00027671,2]
[314439635,1708354253779,-1000.0,0.00027671,2]
[314439636,1708354253789,-501.59150273,0.00027671,2]
[314439637,1708354253798,-500.0,0.00027671,2]
[314439638,1708354253807,-349.93099028,0.00027671,2]
[314439639,1708354253816,-500.0,0.00027671,2]
[314439640,1708354253825,-501.28919033,0.00027671,2]
[314439641,1708354253834,-500.0,0.00027671,2]
[314439642,1708354253843,-500.0,0.00027671,2]
[314439643,1708354253855,-500.0,0.00027671,2]
[314439644,1708354253865,-500.0,0.00027671,2]
[314439645,1708354253875,-500.0,0.00027671,2]
[314439646,1708354253884,-500.0,0.00027671,2]
[314439647,1708354253894,-500.0,0.00027671,2]
[314439648,1708354253904,-1113.08,0.00027671,2]
[314439649,1708354253913,-500.0,0.00027671,2]
[314439650,1708354253925,-500.0,0.00027671,2]
[314439651,1708354253934,-500.0,0.00027671,2]
[314439652,1708354253945,-500.0,0.00027671,2]
[314439653,1708354253954,-500.0,0.00027671,2]
[314439654,1708354253964,-500.0,0.00027671,2]
[314439655,1708354253973,-1000.0,0.00027671,2]
[314439656,1708354253982,-1146.52,0.00027671,2]
[314439657,1708354253992,-507.41020099,0.00027671,2]
[314439658,1708354254001,-500.0,0.00027671,2]
[314439659,1708354254010,-500.0,0.00027671,2]
[314439660,1708354254019,-150.58577434,0.00027671,2]
[314439661,1708354254028,-624.15,0.00027671,2]
[314439662,1708354254038,-500.0,0.00027671,2]
[314439663,1708354254047,-624.82299965,0.00027671,2]
[314439664,1708354254057,-644.6101374,0.00027671,2]
[314439665,1708354254067,-500.0,0.00027671,2]
[314439666,1708354254076,-500.0,0.00027671,2]
[314439667,1708354254085,-500.0,0.00027671,2]
[314439668,1708354254095,-500.0,0.00027671,2]
[314439669,1708354254104,-500.0,0.00027671,2]
[314439670,1708354254113,-500.0,0.00027671,2]
[314439671,1708354254122,-520.37924643,0.00027671,2]
[314439672,1708354254131,-500.0,0.00027671,2]
[314439673,1708354254141,-555.4,0.00027671,2]
[314439674,1708354254151,-500.0,0.00027671,2]
[314439675,1708354254161,-522.91,0.00027671,2]
[314439676,1708354254170,-500.0,0.00027671,2]
[314439677,1708354254179,-500.0,0.00027671,2]
[314439678,1708354254188,-500.0,0.00027671,2]
[314439679,1708354254197,-500.0,0.00027671,2]
[314439680,1708354254207,-500.0,0.00027671,2]
[314439681,1708354254216,-1000.0,0.00027671,2]
[314439682,1708354254225,-500.0,0.00027671,2]
[314439683,1708354254235,-500.0,0.00027671,2]
[314439684,1708354254244,-500.0,0.00027671,2]
[314439685,1708354254253,-500.0,0.00027671,2]
[314439686,1708354254262,-500.0,0.00027671,2]
[314439687,1708354254272,-500.0,0.00027671,2]
[314439688,1708354254281,-500.0,0.00027671,2]
[314439689,1708354254291,-500.0,0.00027671,2]
[314439690,1708354254300,-565.07740366,0.00027671,2]
[314439691,1708354254310,-500.0,0.00027671,2]
[314439692,1708354254319,-610.31,0.00027671,2]
[314439693,1708354254329,-500.0,0.00027671,2]
[314439694,1708354254339,-500.0,0.00027671,2]
[314439695,1708354254348,-1495.56,0.00027671,2]
[314439696,1708354254357,-500.0,0.00027671,2]
[314439697,1708354254366,-500.0,0.00027671,2]
[314439698,1708354254376,-500.0,0.00027671,2]
[314439699,1708354254385,-500.0,0.00027671,2]
[314439700,1708354254397,-500.0,0.00027671,2]
[314439701,1708354254406,-500.0,0.00027671,2]
[314439702,1708354254415,-500.0,0.00027671,2]
[314439703,1708354254424,-511.57844843,0.00027671,2]
[314439704,1708354254433,-500.0,0.00027671,2]
[314439705,1708354254442,-667.9,0.00027671,2]
[314439706,1708354254451,-331.30906795,0.00027671,2]
[314439707,1708354254461,-500.0,0.00027671,2]
[314439708,1708354254470,-500.0,0.00027671,2]
[314439709,1708354254479,-500.0,0.00027671,2]
[314439710,1708354254489,-500.0,0.00027671,2]
[314439711,1708354254498,-500.91557387,0.00027671,2]
[314439712,1708354254507,-500.0,0.00027671,2]
[314439713,1708354254516,-979.16,0.00027671,2]
[314439714,1708354254525,-500.0,0.00027671,2]
[314439715,1708354254534,-478.55074506,0.00027671,2]
[314439716,1708354254543,-504.73000631,0.00027671,2]
[314439717,1708354254552,-500.0,0.00027671,2]
[314439718,1708354254561,-617.37875577,0.00027671,2]
[314439719,1708354254570,-500.0,0.00027671,2]
[314439720,1708354254579,-500.0,0.00027671,2]
[314439721,1708354254588,-500.0,0.00027671,2]
[314439722,1708354254597,-500.0,0.00027671,2]
[314439723,1708354254607,-500.0,0.00027671,2]
[314439724,1708354254615,-500.0,0.00027671,2]
[314439725,1708354254625,-544.29,0.00027671,2]
[314439726,1708354254634,-500.0,0.00027671,2]
[314439727,1708354254645,-500.0,0.00027671,2]
[314439728,1708354254654,-500.0,0.00027671,2]
[314439729,1708354254663,-1266.27,0.00027671,2]
[314439730,1708354254672,-1389.85,0.00027671,2]
[314439731,1708354254681,-1263.76,0.00027671,2]
[314439732,1708354254690,-500.0,0.00027671,2]
[314439733,1708354254783,-1029.46204829,0.00027671,5]
[314439734,1708354254794,-500.0,0.00027671,2]
[314439735,1708354254802,-232.71219261,0.00027671,2]
[314439736,1708354254811,-3215.25,0.00027671,2]
[314439737,1708354254820,-1117.79,0.00027671,2]
[314439738,1708354254829,-500.0,0.00027671,2]
[314439739,1708354254838,-500.0,0.00027671,2]
[314439740,1708354254848,-500.0,0.00027671,2]
[314439741,1708354254858,-500.0,0.00027671,2]
[314439742,1708354254867,-500.0,0.00027671,2]
[314439743,1708354254876,-500.0,0.00027671,2]
[314439744,1708354254886,-500.0,0.00027671,2]
[314439745,1708354254896,-500.0,0.00027671,2]
[314439746,1708354254906,-500.0,0.00027671,2]
[314439747,1708354254915,-500.0,0.00027671,2]
[314439748,1708354254924,-500.0,0.00027671,2]
[314439749,1708354254935,-5852.21,0.00027671,2]
[314439750,1708354254944,-658.58,0.00027671,2]
[314439751,1708354254953,-500.0,0.00027671,15]
[314439752,1708354254962,-500.0,0.00027671,2]
[314439753,1708354254971,-398.71561007,0.00027671,2]
[314439754,1708354254980,-633.66,0.00027671,2]
[314439755,1708354254989,-500.0,0.00027671,2]
[314439756,1708354254998,-500.0,0.00027671,2]
[314439757,1708354255008,-500.0,0.00027671,2]
[314439758,1708354255017,-500.0,0.00027671,2]
[314439759,1708354255026,-500.0,0.00027671,2]
[314439760,1708354255036,-500.0,0.00027671,2]
[314439761,1708354255045,-500.0,0.00027671,2]
[314439762,1708354255054,-500.0,0.00027671,2]
[314439763,1708354255063,-500.0,0.00027671,2]
[314439764,1708354255072,-500.0,0.00027671,2]
[314439765,1708354255081,-500.0,0.00027671,2]
[314439766,1708354255091,-500.0,0.00027671,2]
[314439767,1708354255101,-511.33426391,0.00027671,2]
[314439768,1708354255110,-500.0,0.00027671,2]
[314439769,1708354255120,-500.0,0.00027671,2]
[314439770,1708354255130,-3437.99,0.00027671,2]
[314439771,1708354255139,-500.0,0.00027671,2]
[314439772,1708354255148,-503.57,0.00027671,2]
[314439773,1708354255157,-500.0,0.00027671,2]
[314439774,1708354255167,-500.0,0.00027671,2]
[314439775,1708354255176,-571.97613183,0.00027671,2]
[314439776,1708354255186,-500.0,0.00027671,2]
[314439777,1708354255196,-500.0,0.00027671,2]
[314439778,1708354255205,-500.0,0.00027671,2]
[314439779,1708354255214,-500.0,0.00027671,2]
[314439780,1708354255224,-500.0,0.00027671,2]
[314439781,1708354255233,-500.0,0.00027671,2]
[314439782,1708354255243,-500.0,0.00027671,2]
[314439783,1708354255253,-514.75248085,0.00027671,2]
[314439784,1708354255264,-500.0,0.00027671,2]
[314439785,1708354255273,-500.0,0.00027671,2]
[314439786,1708354255283,-500.0,0.00027671,2]
[314439787,1708354255292,-500.0,0.00027671,2]
[314439788,1708354255301,-786.47,0.00027671,2]
[314439789,1708354255310,-500.0,0.00027671,2]
[314439790,1708354255320,-500.0,0.00027671,2]
[314439791,1708354255329,-500.0,0.00027671,2]
[314439792,1708354255338,-500.0,0.00027671,2]
[314439793,1708354255347,-583.42,0.00027671,2]
[314439794,1708354255356,-318.18279472,0.00027671,2]
[314439795,1708354255365,-1163.99,0.00027671,2]
[314439796,1708354255374,-500.0,0.00027671,2]
[314439797,1708354255383,-500.0,0.00027671,2]
[314439798,1708354255394,-500.0,0.00027671,2]
[314439799,1708354255404,-500.0,0.00027671,2]
[314439800,1708354255413,-500.0,0.00027671,2]
[314439801,1708354255423,-596.91,0.00027671,2]
[314439802,1708354255432,-500.0,0.00027671,2]
[314439803,1708354255441,-500.0,0.00027671,2]
[314439804,1708354255451,-500.0,0.00027671,2]
[314439805,1708354255460,-500.0,0.00027671,2]
[314439806,1708354255469,-829.73,0.00027671,2]
[314439807,1708354255478,-582.51749829,0.00027671,2]
[314439808,1708354255487,-500.0,0.00027671,2]
[314439809,1708354255496,-548.38,0.00027671,2]